Workbook

Sheet All Employers
W4: Region | X4: PY 2012-2013 | Y4: PY 2013-2014 | Z4: Percent Completion
W5: 1 | X5: =Incentives!B4 -> 1017 | Y5: =Incentives!G4 -> 2664 | Z5: =Incentives!L4 -> 1.309734513
W6: 2 | X6: =Incentives!B5 -> 1270 | Y6: =Incentives!G5 -> 2580 | Z6: =Incentives!L5 -> 1.015748031
W7: 3 | X7: =Incentives!B6 -> 373 | Y7: =Incentives!G6 -> 767 | Z7: =Incentives!L6 -> 1.028150134
W8: 4 | X8: =Incentives!B7 -> 1016 | Y8: =Incentives!G7 -> 1986 | Z8: =Incentives!L7 -> 0.9773622047
W9: 5 | X9: =Incentives!B8 -> 1162 | Y9: =Incentives!G8 -> 1560 | Z9: =Incentives!L8 -> 0.6712564544
W10: 6 | X10: =Incentives!B9 -> 314 | Y10: =Incentives!G9 -> 392 | Z10: =Incentives!L9 -> 0.6242038217
W11: 7 | X11: =Incentives!B10 -> 399 | Y11: =Incentives!G10 -> 391 | Z11: =Incentives!L10 -> 0.4899749373
W12: 8 | X12: =Incentives!B11 -> 2251 | Y12: =Incentives!G11 -> 5162 | Z12: =Incentives!L11 -> 1.14660151
W13: 9 | X13: =Incentives!B12 -> 878 | Y13: =Incentives!G12 -> 1536 | Z13: =Incentives!L12 -> 0.874715262
W14: 10 | X14: =Incentives!B13 -> 1530 | Y14: =Incentives!G13 -> 2469 | Z14: =Incentives!L13 -> 0.8068627451
W15: 11 | X15: =Incentives!B14 -> 1166 | Y15: =Incentives!G14 -> 2285 | Z15: =Incentives!L14 -> 0.9798456261
W16: 12 | X16: =Incentives!B15 -> 3319 | Y16: =Incentives!G15 -> 7262 | Z16: =Incentives!L15 -> 1.094004218
W17: 13 | X17: =Incentives!B16 -> 2091 | Y17: =Incentives!G16 -> 4307 | Z17: =Incentives!L16 -> 1.029890005
W18: 14 | X18: =Incentives!B17 -> 2538 | Y18: =Incentives!G17 -> 5112 | Z18: =Incentives!L17 -> 1.007092199
W19: 15 | X19: =Incentives!B18 -> 3658 | Y19: =Incentives!G18 -> 7451 | Z19: =Incentives!L18 -> 1.018452706
W20: 16 | X20: =Incentives!B19 -> 1589 | Y20: =Incentives!G19 -> 3540 | Z20: =Incentives!L19 -> 1.113908118
W21: 17 | X21: =Incentives!B20 -> 1461 | Y21: =Incentives!G20 -> 2108 | Z21: =Incentives!L20 -> 0.7214236824
W22: 18 | X22: =Incentives!B21 -> 1368 | Y22: =Incentives!G21 -> 2787 | Z22: =Incentives!L21 -> 1.018640351
W23: 19 | X23: =Incentives!B22 -> 671 | Y23: =Incentives!G22 -> 1078 | Z23: =Incentives!L22 -> 0.8032786885
W24: 20 | X24: =Incentives!B23 -> 1279 | Y24: =Incentives!G23 -> 2609 | Z24: =Incentives!L23 -> 1.019937451
W25: 21 | X25: =Incentives!B24 -> 1910 | Y25: =Incentives!G24 -> 4068 | Z25: =Incentives!L24 -> 1.064921466
W26: 22 | X26: =Incentives!B25 -> 5056 | Y26: =Incentives!G25 -> 9398 | Z26: =Incentives!L25 -> 0.9293908228
W27: 23 | X27: =Incentives!B26 -> 4784 | Y27: =Incentives!G26 -> 5249 | Z27: =Incentives!L26 -> 0.5485994983
W28: 24 | X28: =Incentives!B27 -> 1887 | Y28: =Incentives!G27 -> 3958 | Z28: =Incentives!L27 -> 1.048754637

Sheet Level 1 Employers
W4: Region | X4: PY 2012-2013 | Y4: PY 2013-2014 | Z4: Percent Completion
W5: 1 | X5: =Incentives!C4 -> 413 | Y5: =Incentives!H4 -> 2150 | Z5: =Incentives!M4 -> 2.602905569
W6: 2 | X6: =Incentives!C5 -> 478 | Y6: =Incentives!H5 -> 989 | Z6: =Incentives!M5 -> 1.034518828
W7: 3 | X7: =Incentives!C6 -> 266 | Y7: =Incentives!H6 -> 552 | Z7: =Incentives!M6 -> 1.037593985
W8: 4 | X8: =Incentives!C7 -> 151 | Y8: =Incentives!H7 -> 667 | Z8: =Incentives!M7 -> 2.208609272
W9: 5 | X9: =Incentives!C8 -> 323 | Y9: =Incentives!H8 -> 1020 | Z9: =Incentives!M8 -> 1.578947368
W10: 6 | X10: =Incentives!C9 -> 182 | Y10: =Incentives!H9 -> 295 | Z10: =Incentives!M9 -> 0.8104395604
W11: 7 | X11: =Incentives!C10 -> 224 | Y11: =Incentives!H10 -> 239 | Z11: =Incentives!M10 -> 0.5334821429
W12: 8 | X12: =Incentives!C11 -> 638 | Y12: =Incentives!H11 -> 2085 | Z12: =Incentives!M11 -> 1.634012539
W13: 9 | X13: =Incentives!C12 -> 276 | Y13: =Incentives!H12 -> 770 | Z13: =Incentives!M12 -> 1.394927536
W14: 10 | X14: =Incentives!C13 -> 747 | Y14: =Incentives!H13 -> 1136 | Z14: =Incentives!M13 -> 0.7603748327
W15: 11 | X15: =Incentives!C14 -> 694 | Y15: =Incentives!H14 -> 810 | Z15: =Incentives!M14 -> 0.583573487
W16: 12 | X16: =Incentives!C15 -> 438 | Y16: =Incentives!H15 -> 2161 | Z16: =Incentives!M15 -> 2.466894977
W17: 13 | X17: =Incentives!C16 -> 1262 | Y17: =Incentives!H16 -> 2200 | Z17: =Incentives!M16 -> 0.8716323296
W18: 14 | X18: =Incentives!C17 -> 110 | Y18: =Incentives!H17 -> 2944 | Z18: =Incentives!M17 -> 13.38181818
W19: 15 | X19: =Incentives!C18 -> 480 | Y19: =Incentives!H18 -> 1955 | Z19: =Incentives!M18 -> 2.036458333
W20: 16 | X20: =Incentives!C19 -> 792 | Y20: =Incentives!H19 -> 2631 | Z20: =Incentives!M19 -> 1.660984848
W21: 17 | X21: =Incentives!C20 -> 483 | Y21: =Incentives!H20 -> 997 | Z21: =Incentives!M20 -> 1.032091097
W22: 18 | X22: =Incentives!C21 -> 293 | Y22: =Incentives!H21 -> 1488 | Z22: =Incentives!M21 -> 2.539249147
W23: 19 | X23: =Incentives!C22 -> 329 | Y23: =Incentives!H22 -> 535 | Z23: =Incentives!M22 -> 0.8130699088
W24: 20 | X24: =Incentives!C23 -> 723 | Y24: =Incentives!H23 -> 1931 | Z24: =Incentives!M23 -> 1.335408022
W25: 21 | X25: =Incentives!C24 -> 219 | Y25: =Incentives!H24 -> 961 | Z25: =Incentives!M24 -> 2.194063927
W26: 22 | X26: =Incentives!C25 -> 1764 | Y26: =Incentives!H25 -> 3541 | Z26: =Incentives!M25 -> 1.003684807
W27: 23 | X27: =Incentives!C26 -> 1195 | Y27: =Incentives!H26 -> 1924 | Z27: =Incentives!M26 -> 0.8050209205
W28: 24 | X28: =Incentives!C27 -> 575 | Y28: =Incentives!H27 -> 2198 | Z28: =Incentives!M27 -> 1.911304348

Sheet Incentives
B1: Employers Served July 1, 2013 - April 30, 2014
B2: PY 2012-2013 (Baseline) | G2: PY 2013-2014 (Year-to-Date) | L2: % of Goal
A3: Region | B3: All Employers | C3: Level 1 Employers | D3: % Receiving Level 1 | E3: % of All Employers | F3: % of All Level 1 Employers | G3: All Employers | H3: Level 1 Employers | I3: % Receiving Level 1 | J3: % of All Employers | K3: % of All Level 1 Employers | L3: All Employers | M3: Level 1 Employers
A4: 1 | B4: 1017 | C4: 413 | D4: =C4/B4 -> 0.4060963618 | E4: =B4/$B$28 -> 0.0236583153 | F4: =C4/$C$28 -> 0.03163538874 | G4: 2664 | H4: 2150 | I4: =H4/G4 -> 0.8070570571 | J4: =G4/$G$28 -> 0.0330033821 | K4: =H4/$H$28 -> 0.05942673927 | L4: =G4/(B4*2) -> 1.309734513 | M4: =H4/(C4*2) -> 2.602905569
A5: 2 | B5: 1270 | C5: 478 | D5: 0.3763779528 | E5: =B5/$B$28 -> 0.02954381557 | F5: =C5/$C$28 -> 0.03661432401 | G5: 2580 | H5: 989 | I5: 0.3833333333 | J5: 0.03196273492 | K5: 0.02733630006 | L5: =G5/(B5*2) -> 1.015748031 | M5: =H5/(C5*2) -> 1.034518828
A6: 3 | B6: 373 | C6: 266 | D6: 0.7131367292 | E6: 0.008677041896 | F6: 0.02037533512 | G6: 767 | H6: 552 | I6: 0.7196870926 | J6: 0.009502099877 | K6: 0.0152574698 | L6: 1.028150134 | M6: 1.037593985
A7: 4 | B7: 1016 | C7: 151 | D7: 0.1486220472 | E7: 0.02363505246 | F7: 0.01156644964 | G7: 1986 | H7: 667 | I7: 0.3358509567 | J7: 0.02460387269 | K7: 0.01843610935 | L7: 0.9773622047 | M7: 2.208609272
A8: 5 | B8: 1162 | C8: 323 | D8: 0.2779690189 | E8: 0.02703142811 | F8: 0.02474147836 | G8: 1560 | H8: 1020 | I8: 0.6538461538 | J8: 0.01932630484 | K8: 0.02819315072 | L8: 0.6712564544 | M8: 1.578947368
A9: 6 | B9: 314 | C9: 182 | D9: 0.5796178344 | E9: 0.007304533929 | F9: 0.01394101877 | G9: 392 | H9: 295 | I9: 0.7525510204 | J9: 0.004856353523 | K9: 0.008153901435 | L9: 0.6242038217 | M9: 0.8104395604
A10: 7 | B10: 399 | C10: 224 | D10: 0.5614035088 | E10: 0.009281875916 | F10: 0.01715817694 | G10: 391 | H10: 239 | I10: 0.6112531969 | J10: 0.004843964866 | K10: 0.006606042179 | L10: 0.4899749373 | M10: 0.5334821429
A11: 8 | B11: 2251 | C11: 638 | D11: 0.2834295869 | E11: 0.05236466839 | F11: 0.04887016469 | G11: 5162 | H11: 2085 | I11: 0.4039132119 | J11: 0.06395024715 | K11: 0.05763011692 | L11: 1.14660151 | M11: 1.634012539
A12: 9 | B12: 878 | C12: 276 | D12: 0.3143507973 | E12: 0.02042477958 | F12: 0.02114132516 | G12: 1536 | H12: 770 | I12: 0.5013020833 | J12: 0.01902897707 | K12: 0.02128306476 | L12: 0.874715262 | M12: 1.394927536
A13: 10 | B13: 1530 | C13: 747 | D13: 0.4882352941 | E13: 0.03559215577 | F13: 0.05721945615 | G13: 2469 | H13: 1136 | I13: 0.4601053058 | J13: 0.030587594 | K13: 0.03139943061 | L13: 0.8068627451 | M13: 0.7603748327
A14: 11 | B14: 1166 | C14: 694 | D14: 0.5951972556 | E14: 0.02712447949 | F14: 0.05315970892 | G14: 2285 | H14: 810 | I14: 0.3544857768 | J14: 0.02830808112 | K14: 0.02238867852 | L14: 0.9798456261 | M14: 0.583573487
A15: 12 | B15: 3319 | C15: 438 | D15: 0.1319674601 | E15: 0.07720938889 | F15: 0.03355036385 | G15: 7262 | H15: 2161 | I15: 0.2975764252 | J15: 0.08996642674 | K15: 0.05973078305 | L15: 1.094004218 | M15: 2.466894977
A16: 13 | B16: 2091 | C16: 1262 | D16: 0.6035389766 | E16: 0.04864261288 | F16: 0.09666794332 | G16: 4307 | H16: 2200 | I16: 0.510796378 | J16: 0.05335794547 | K16: 0.06080875646 | L16: 1.029890005 | M16: 0.8716323296
A17: 14 | B17: 2538 | C17: 110 | D17: 0.04334121355 | E17: 0.05904110545 | F17: 0.008425890463 | G17: 5112 | H17: 2944 | I17: 0.5758998435 | J17: 0.06333081431 | K17: 0.08137317228 | L17: 1.007092199 | M17: 13.38181818
A18: 15 | B18: 3658 | C18: 480 | D18: 0.1312192455 | E18: 0.08509549399 | F18: 0.03676752202 | G18: 7451 | H18: 1955 | I18: 0.2623808885 | J18: 0.0923078829 | K18: 0.05403687222 | L18: 1.018452706 | M18: 2.036458333
A19: 16 | B19: 1589 | C19: 792 | D19: 0.4984266834 | E19: 0.03696466374 | F19: 0.06066641134 | G19: 3540 | H19: 2631 | I19: 0.743220339 | J19: 0.04385584559 | K19: 0.07272174466 | L19: 1.113908118 | M19: 1.660984848
A20: 17 | B20: 1461 | C20: 483 | D20: 0.3305954825 | E20: 0.03398701933 | F20: 0.03699731903 | G20: 2108 | H20: 997 | I20: 0.4729601518 | J20: 0.02611528884 | K20: 0.02755742281 | L20: 0.7214236824 | M20: 1.032091097
A21: 18 | B21: 1368 | C21: 293 | D21: 0.2141812865 | E21: 0.03182357457 | F21: 0.02244350823 | G21: 2787 | H21: 1488 | I21: 0.5339074273 | J21: 0.03452718691 | K21: 0.04112883164 | L21: 1.018640351 | M21: 2.539249147
A22: 19 | B22: 671 | C22: 329 | D22: 0.4903129657 | E22: 0.01560937027 | F22: 0.02520107239 | G22: 1078 | H22: 535 | I22: 0.4962894249 | J22: 0.01335497219 | K22: 0.01478758396 | L22: 0.8032786885 | M22: 0.8130699088
A23: 20 | B23: 1279 | C23: 723 | D23: 0.5652853792 | E23: 0.02975318119 | F23: 0.05538108005 | G23: 2609 | H23: 1931 | I23: 0.7401303181 | J23: 0.03232200597 | K23: 0.05337350397 | L23: 1.019937451 | M23: 1.335408022
A24: 21 | B24: 1910 | C24: 219 | D24: 0.1146596859 | E24: 0.04443203759 | F24: 0.01677518192 | G24: 4068 | H24: 961 | I24: 0.2362340216 | J24: 0.05039705646 | K24: 0.02656237044 | L24: 1.064921466 | M24: 2.194063927
A25: 22 | B25: 5056 | C25: 1764 | D25: 0.3488924051 | E25: 0.117616954 | F25: 0.1351206434 | G25: 9398 | H25: 3541 | I25: 0.3767822941 | J25: 0.116428598 | K25: 0.09787445756 | L25: 0.9293908228 | M25: 1.003684807
A26: 23 | B26: 4784 | C26: 1195 | D26: 0.2497909699 | E26: 0.1112894596 | F26: 0.09153581003 | G26: 5249 | H26: 1924 | I26: 0.3665460088 | J26: 0.06502806031 | K26: 0.05318002156 | L26: 0.5485994983 | M26: 0.8050209205
A27: 24 | B27: 1887 | C27: 575 | D27: 0.3047164812 | E27: 0.04389699211 | F27: 0.04404442742 | G27: 3958 | H27: 2198 | I27: 0.5553309752 | J27: 0.04903430419 | K27: 0.06075347577 | L27: 1.048754637 | M27: 1.911304348
A28: Statewide | B28: =SUM(B4:B27) -> 42987 | C28: =SUM(C4:C27) -> 13055 | D28: 0.3036964664 | E28: =SUM(E4:E27) -> 1 | F28: =SUM(F4:F27) -> 1 | G28: =SUM(G4:G27) -> 80719 | H28: =SUM(H4:H27) -> 36179 | I28: 0.4482092196 | J28: =SUM(J4:J27) -> 1 | K28: =SUM(K4:K27) -> 1 | L28: 0.9388768698 | M28: 1.385637687

Sheet Region 1 (hidden)

Sheet Sheet2 (hidden)
B1: Employers Served
B2: PY2011-2012 | E2: PY2012-2013 | H2: % Change
A3: Region | B3: All Employers | C3: Level 1 Employers | D3: % Receiving Level 1 | E3: All Employers | F3: Level 1 Employers | G3: % Receiving Level 1 | H3: All Employers | I3: Level 1 Employers
A4: 1 | B4: 940 | C4: 563 | D4: =C4/B4 -> 0.5989361702 | E4: 1033 | G4: =F4/E4 -> 0 | H4: =(E4-B4)/B4 -> 0.09893617021 | I4: =(F4-C4)/C4 -> -1
A5: 2 | B5: 922 | C5: 441 | D5: =C5/B5 -> 0.478308026 | E5: 1282 | G5: =F5/E5 -> 0 | H5: =(E5-B5)/B5 -> 0.3904555315 | I5: -1
A6: 3 | B6: 375 | C6: 304 | D6: 0.8106666667 | E6: 378 | G6: 0 | H6: 0.008 | I6: -1
A7: 4 | B7: 941 | C7: 216 | D7: 0.2295430393 | E7: 1017 | G7: 0 | H7: 0.08076514346 | I7: -1
A8: 5 | B8: 1116 | C8: 517 | D8: 0.4632616487 | E8: 1239 | G8: 0 | H8: 0.1102150538 | I8: -1
A9: 6 | B9: 366 | C9: 295 | D9: 0.806010929 | E9: 326 | G9: 0 | H9: -0.1092896175 | I9: -1
A10: 7 | B10: 425 | C10: 271 | D10: 0.6376470588 | E10: 406 | G10: 0 | H10: -0.04470588235 | I10: -1
A11: 8 | B11: 2234 | C11: 1238 | D11: 0.5541629364 | E11: 2318 | G11: 0 | H11: 0.0376007162 | I11: -1
A12: 9 | B12: 891 | C12: 558 | D12: 0.6262626263 | E12: 887 | G12: 0 | H12: -0.004489337823 | I12: -1
A13: 10 | B13: 1287 | C13: 792 | D13: 0.6153846154 | E13: 1567 | G13: 0 | H13: 0.2175602176 | I13: -1
A14: 11 | B14: 1125 | C14: 583 | D14: 0.5182222222 | E14: 1983 | G14: 0 | H14: 0.7626666667 | I14: -1
A15: 12 | B15: 3196 | C15: 642 | D15: 0.2008760951 | E15: 3419 | G15: 0 | H15: 0.0697747184 | I15: -1
A16: 13 | B16: 2025 | C16: 1340 | D16: 0.6617283951 | E16: 2113 | G16: 0 | H16: 0.04345679012 | I16: -1
A17: 14 | B17: 2211 | C17: 242 | D17: 0.1094527363 | E17: 2548 | G17: 0 | H17: 0.1524197196 | I17: -1
A18: 15 | B18: 2866 | C18: 1256 | D18: 0.4382414515 | E18: 4043 | G18: 0 | H18: 0.4106769016 | I18: -1
A19: 16 | B19: 2901 | C19: 1775 | D19: 0.61185798 | E19: 1626 | G19: 0 | H19: -0.4395036194 | I19: -1
A20: 17 | B20: 1416 | C20: 798 | D20: 0.563559322 | E20: 1565 | G20: 0 | H20: 0.1052259887 | I20: -1
A21: 18 | B21: 1414 | C21: 668 | D21: 0.4724186704 | E21: 1404 | G21: 0 | H21: -0.007072135785 | I21: -1
A22: 19 | B22: 695 | C22: 460 | D22: 0.6618705036 | E22: 677 | G22: 0 | H22: -0.02589928058 | I22: -1
A23: 20 | B23: 1227 | C23: 791 | D23: 0.6446617767 | E23: 1302 | G23: 0 | H23: 0.06112469438 | I23: -1
A24: 21 | B24: 2227 | C24: 627 | D24: 0.2815446789 | E24: 1929 | G24: 0 | H24: -0.1338123035 | I24: -1
A25: 22 | B25: 5234 | C25: 2645 | D25: 0.505349637 | E25: 5169 | G25: 0 | H25: -0.01241880015 | I25: -1
A26: 23 | B26: 5409 | C26: 3219 | D26: 0.5951192457 | E26: 4819 | G26: 0 | H26: -0.1090774635 | I26: -1
A27: 24 | B27: 1315 | C27: 582 | D27: 0.4425855513 | E27: 1910 | G27: 0 | H27: 0.4524714829 | I27: -1

Sheet Sheet1
